fUSD/lending_fUSD_20240104
["ID","MTS","AMOUNT","RATE_DAILY","PERIOD"]
[310208799,1704400313633,-500.0,0.00036986,2]
[310208800,1704400313642,-924.28,0.00036986,2]
[310208801,1704400313651,-612.45,0.00036986,2]
[310208802,1704400313660,-1719.17,0.00036986,2]
[310208803,1704400313669,-500.0,0.00036986,2]
[310208804,1704400313679,-1664.58,0.00036986,2]
[310208805,1704400313688,-650.67,0.00036986,2]
[310208806,1704400313697,-837.7,0.00036986,2]
[310208807,1704400313706,-651.85,0.00036986,2]
[310208808,1704400313715,-1763.88,0.00036986,2]
[310208809,1704400313725,-500.0,0.00036986,2]
[310208810,1704400313736,-5455.26,0.00036986,2]
[310208811,1704400313746,-595.32,0.00036986,2]
[310208812,1704400313755,-500.0,0.00036986,2]
[310208813,1704400313766,-864.85,0.00036986,2]
[310208814,1704400313777,-500.0,0.00036986,2]
[310208815,1704400313787,-261.52940995,0.00036986,2]
[310208816,1704400313796,-618.44,0.00036986,2]
[310208817,1704400313805,-1928.75,0.00036986,2]
[310208818,1704400313814,-500.0,0.00036986,2]
[310208819,1704400313823,-500.0,0.00036986,2]
[310208820,1704400313833,-575.7,0.00036986,2]
[310208821,1704400313843,-2873.21,0.00036986,2]
[310208822,1704400313852,-589.02,0.00036986,2]
[310208823,1704400313862,-500.0,0.00036986,2]
[310208824,1704400313872,-500.0,0.00036986,2]
[310208825,1704400313882,-501.82,0.00036986,2]
[310208826,1704400313893,-500.0,0.00036986,2]
[310208827,1704400313902,-500.0,0.00036986,2]
[310208828,1704400313912,-1565.07,0.00036986,2]
[310208829,1704400313922,-1472.89,0.00036986,2]
[310208830,1704400313931,-500.0,0.00036986,2]
[310208831,1704400313940,-6496.65,0.00036986,2]
[310208832,1704400313949,-902.0,0.00036986,2]
[310208833,1704400313958,-274.90740796,0.00036986,2]
[310208834,1704400313967,-864.86,0.00036986,2]
[310208835,1704400313976,-460.47,0.00036986,2]
[310208836,1704400313986,-526.56060302,0.00036986,2]
[310208837,1704400313995,-539.42,0.00036986,2]
[310208838,1704400314004,-659.36,0.00036986,2]
[310208839,1704400314013,-2834.51,0.00036986,2]
[310208840,1704400314023,-500.0,0.00036986,2]
[310208841,1704400314032,-535.67,0.00036986,2]
[310208842,1704400314042,-772.31,0.00036986,2]
[310208843,1704400314051,-730.25,0.00036986,2]
[310208844,1704400314060,-500.0,0.00036986,2]
[310208845,1704400314071,-500.0,0.00036986,2]
[310208846,1704400314082,-1511.83,0.00036986,2]
[310208847,1704400314091,-597.99,0.00036986,2]
[310208848,1704400314100,-1373.46,0.00036986,2]
[310208849,1704400314109,-500.0,0.00036986,2]
[310208850,1704400314118,-500.0,0.00036986,2]
[310208851,1704400314127,-1411.58,0.00036986,2]
[310208852,1704400314137,-844.92,0.00036986,2]
[310208853,1704400314146,-1122.72,0.00036986,2]
[310208854,1704400314155,-500.0,0.00036986,2]
[310208855,1704400314164,-938.79,0.00036986,2]
[310208856,1704400314173,-700.27,0.00036986,2]
[310208857,1704400314182,-2603.65,0.00036986,2]
[310208858,1704400314190,-500.0,0.00036986,2]
[310208859,1704400314200,-500.0,0.00036986,2]
[310208860,1704400314209,-690.56,0.00036986,2]
[310208861,1704400314218,-284.44,0.00036986,2]
[310208862,1704400314228,-1114.57,0.00036986,2]
[310208863,1704400314238,-500.0,0.00036986,2]
[310208864,1704400314247,-1863.03,0.00036986,2]
[310208865,1704400314256,-625.26,0.00036986,2]
[310208866,1704400314265,-1822.1,0.00036986,2]
[310208867,1704400314274,-524.64,0.00036986,2]
[310208868,1704400314283,-715.91,0.00036986,2]
[310208869,1704400314292,-1359.04,0.00036986,2]
[310208870,1704400314303,-1787.11,0.00036986,2]
[310208871,1704400314313,-151.0,0.00036986,7]
[310208872,1704400314322,-151.0,0.00036986,7]
[310208873,1704400314333,-229.79462586,0.00036986,2]
[310208874,1704400314342,-300.0,0.00036987,18]
[310208875,1704400314351,-200.0,0.00036987,17]
[310208876,1704400314360,-1087.0,0.00036989,20]
[310208877,1704400314369,-464.0,0.00036989,20]
[310208878,1704400314379,-188.98642747,0.00036999,7]
[310208879,1704400314389,-180.71081296,0.00036999,4]
[310208880,1704400314399,-180.0,0.00036999,4]
[310208881,1704400314408,-180.0,0.00036999,4]
[310208882,1704400314418,-152.70361878,0.00036999,7]
[310208883,1704400314427,-150.0,0.00036999,2]
[310208884,1704400314436,-150.0,0.00036999,2]
[310208885,1704400314447,-150.0,0.00036999,2]
[310208886,1704400314457,-150.0,0.00036999,2]
[310208887,1704400314467,-150.0,0.00036999,2]
[310208888,1704400314476,-100000.0,0.00037,7]
[310208889,1704400314490,-229.09559365,0.00037,2]
[310208890,1704400314500,-4042036.565469,0.00037,7]
[310208891,1704400314948,-2332.17560741,0.00037,7]
[310208892,1704400314999,-500.0,0.00033698,2]
[310208893,1704400315009,-327.91845062,0.00034,2]
[310208894,1704400315020,-2196.79710131,0.00037,7]
[310208895,1704400315031,-469.7765145,0.00037,7]
[310208896,1704400315043,-845.81511758,0.00037,7]
[310208897,1704400315079,-500.0,0.00032876,2]
[310208898,1704400315089,-300.0,0.0003341,2]
[310208899,1704400315098,-327.91845062,0.00034,2]
[310208900,1704400315108,-699.0,0.00034935,2]
[310208901,1704400315117,-2206.51736979,0.00037,7]
[310208902,1704400315130,-574.76744076,0.00037,7]
[310208903,1704400315150,-500.0,0.00032876,2]
[310208904,1704400315159,-3182.09637203,0.00037,7]
[310208905,1704400315171,-1689.63022655,0.00037,7]
[310208906,1704400315191,-500.0,0.00033972,2]
[310208907,1704400315200,-327.91845062,0.00034,2]
[310208908,1704400315210,-1123.23796047,0.00037,7]
[310208909,1704400315566,-300.2274635,0.0003315,2]
[310208910,1704400315578,-199.7725365,0.0003315,2]
[310208911,1704400315587,-500.0,0.0003315,2]
[310208912,1704400315598,-2379.79,0.00033424,2]
[310208913,1704400315607,-500.0,0.00033424,2]
[310208914,1704400315617,-2379.79,0.00033698,2]
[310208915,1704400315626,-500.0,0.00033698,2]
[310208916,1704400315636,-2379.79,0.00033972,2]
[310208917,1704400315646,-500.0,0.00033972,2]
[310208918,1704400315655,-327.91845062,0.00034,2]
[310208919,1704400315665,-327.91845062,0.00034,2]
[310208920,1704400315677,-327.91845062,0.00034,2]
[310208921,1704400315688,-327.91845062,0.00034,2]
[310208922,1704400315698,-327.91845062,0.00034,2]
[310208923,1704400315708,-327.91845062,0.00034,2]
[310208924,1704400315718,-327.91845062,0.00034,2]
[310208925,1704400315730,-327.91845062,0.00034,2]
[310208926,1704400315740,-327.91845062,0.00034,2]
[310208927,1704400315750,-327.91845062,0.00034,2]
[310208928,1704400315759,-327.91845062,0.00034,2]
[310208929,1704400315768,-327.91845062,0.00034,2]
[310208930,1704400315778,-327.91845062,0.00034,2]
[310208931,1704400315789,-500.0,0.00034246,2]
[310208932,1704400315799,-2379.79,0.00034246,2]
[310208933,1704400315809,-500.0,0.00034246,2]
[310208934,1704400315819,-500.0,0.0003452,2]
[310208935,1704400315830,-2379.79,0.0003452,2]
[310208936,1704400315840,-500.0,0.0003452,2]
[310208937,1704400315850,-500.0,0.00034794,2]
[310208938,1704400315860,-2379.79,0.00034794,2]
[310208939,1704400315871,-1234.0,0.00034935,2]
[310208940,1704400315882,-500.0,0.00035068,2]
[310208941,1704400315892,-2379.79,0.00035068,2]
[310208942,1704400315902,-500.0,0.00035342,2]
[310208943,1704400315911,-5859.00381422,0.00037,7]
[310208944,1704400315931,-2314.2119,0.00037,7]
[310208945,1704400316038,-327.91845062,0.00034,2]
[310208946,1704400316049,-327.91845062,0.00034,2]
[310208947,1704400316060,-327.91845062,0.00034,2]
[310208948,1704400316071,-327.91845062,0.00034,2]
[310208949,1704400316082,-327.91845062,0.00034,2]
[310208950,1704400316093,-2379.79,0.00035342,2]
[310208951,1704400316104,-500.0,0.00035616,2]
[310208952,1704400316114,-2379.79,0.00035616,2]
[310208953,1704400316124,-500.0,0.0003589,2]
[310208954,1704400316133,-2379.79,0.0003589,2]
[310208955,1704400316143,-500.0,0.00036164,2]
[310208956,1704400316153,-1179126.0229291,0.00037,7]
[310208957,1704400316163,-2000.0,0.00037,6]
[310208958,1704400316172,-197.40300321,0.00037,2]
[310208959,1704400316182,-20000.0,0.00037,8]
[310208960,1704400316191,-231.9747977,0.00037,2]
[310208961,1704400316202,-666.52205419,0.00037,7]
[310208962,1704400316212,-235.198181,0.00037,2]
[310208963,1704400316222,-188.0,0.00037,2]
[310208964,1704400316232,-25800.0,0.00037,7]
[310208965,1704400316241,-43589.63,0.00037,7]
[310208966,1704400316251,-25696.93,0.00037,7]
[310208967,1704400316261,-209.79858676,0.00037,2]
[310208968,1704400316270,-700.17603033,0.00037,4]
[310208969,1704400316280,-1000.0,0.00037,4]
[310208970,1704400316289,-1000.0,0.00037,3]
[310208971,1704400316300,-1000.0,0.00037,3]
[310208972,1704400316309,-308.92091342,0.00037,4]
[310208973,1704400316319,-987.31885076,0.00037,2]
[310208974,1704400316330,-500.0,0.00037,5]
[310208975,1704400316340,-2000.0,0.00037,14]
[310208976,1704400316350,-1000.0,0.00037,30]
[310208977,1704400316359,-150.0,0.00037,30]
[310208978,1704400316369,-1038011.93969975,0.00037,7]
[310208979,1704400316379,-151.0,0.00037,7]
[310208980,1704400316389,-151.0,0.00037,7]
[310208981,1704400316400,-500.0,0.00037,3]
[310208982,1704400316411,-151.0,0.00037,7]
[310208983,1704400316422,-151.0,0.00037,7]
[310208984,1704400316432,-238.08508667,0.00037,2]
[310208985,1704400316442,-1200.0,0.00037,30]
[310208986,1704400316452,-1923.175004,0.00037,2]
[310208987,1704400316461,-170.32411669,0.00037019,14]
[310208988,1704400316471,-325.61963289,0.00037042,14]
[310208989,1704400316481,-202.0,0.00037055,14]
[310208990,1704400316490,-6308.66275518,0.00037068,15]
[310208991,1704400316500,-151.0,0.00037073,4]
[310208992,1704400316510,-5673.8,0.00037075,2]
[310208993,1704400316520,-153.84,0.00037086,2]
[310208994,1704400316529,-220.71423699,0.00037117,14]
[310208995,1704400316539,-500.0,0.00037135,7]
[310208996,1704400316549,-500.0,0.00037135,7]
[310208997,1704400316559,-16208.0,0.00037182,20]
[310208998,1704400316568,-157.40104,0.00037198,2]
[310208999,1704400316577,-6528.34,0.000372,7]
[310209000,1704400316587,-150.0,0.000372,30]
[310209001,1704400316597,-151.3449159,0.00037218,14]
[310209002,1704400316607,-151.69832518,0.00037231,2]
[310209003,1704400316616,-1156.10858053,0.0003724,4]
[310209004,1704400316626,-151.3449159,0.00037251,14]
[310209005,1704400316636,-150.0,0.00037259,2]
[310209006,1704400316645,-1105.69,0.0003726,2]
[310209007,1704400316655,-654.3,0.0003726,2]
[310209008,1704400316665,-332.38063692,0.0003726,2]
[310209009,1704400316675,-500.0,0.0003726,2]
[310209010,1704400316685,-500.0,0.0003726,2]
[310209011,1704400316695,-809.33,0.0003726,2]
[310209012,1704400316705,-500.0,0.0003726,2]
[310209013,1704400316715,-500.0,0.0003726,2]
[310209014,1704400316725,-570.2,0.0003726,2]
[310209015,1704400316738,-217.77,0.0003726,2]
[310209016,1704400316748,-500.0,0.0003726,2]
[310209017,1704400316758,-500.0,0.0003726,2]
[310209018,1704400316767,-500.0,0.0003726,2]
[310209019,1704400316777,-308.25793562,0.0003726,2]
[310209020,1704400316786,-500.0,0.0003726,2]
[310209021,1704400316796,-826.26,0.0003726,2]
[310209022,1704400316807,-500.0,0.0003726,2]
[310209023,1704400316818,-1785.82,0.0003726,2]
[310209024,1704400316828,-541.66,0.0003726,2]
[310209025,1704400316838,-702.0,0.0003726,2]
[310209026,1704400316848,-713.92,0.0003726,2]
[310209027,1704400316858,-508.08,0.0003726,2]
[310209028,1704400316869,-500.0,0.0003726,2]
[310209029,1704400316879,-500.0,0.0003726,2]
[310209030,1704400316889,-605.7,0.0003726,2]
[310209031,1704400317098,-500.0,0.0003726,2]
[310209032,1704400317108,-617.34,0.0003726,2]
[310209033,1704400317117,-1053.81,0.0003726,2]
[310209034,1704400317127,-500.0,0.0003726,2]
[310209035,1704400317137,-500.0,0.0003726,2]
[310209036,1704400317147,-500.0,0.0003726,2]
[310209037,1704400317157,-637.91,0.0003726,2]
[310209038,1704400317167,-642.96,0.0003726,2]
[310209039,1704400317176,-500.0,0.0003726,2]
[310209040,1704400317186,-500.0,0.0003726,2]
[310209041,1704400317195,-500.0,0.0003726,2]
[310209042,1704400317205,-500.0,0.0003726,2]
[310209043,1704400317214,-500.0,0.0003726,2]
[310209044,1704400317224,-500.0,0.0003726,2]
[310209045,1704400317234,-500.0,0.0003726,2]
[310209046,1704400317244,-500.0,0.0003726,2]
[310209047,1704400317253,-583.92,0.0003726,2]
[310209048,1704400317263,-500.0,0.0003726,2]
[310209049,1704400317272,-500.0,0.0003726,2]
[310209050,1704400317282,-644.12,0.0003726,2]
[310209051,1704400317292,-1262.62,0.0003726,2]
[310209052,1704400317301,-500.0,0.0003726,2]
[310209053,1704400317310,-501.37,0.0003726,2]
[310209054,1704400317319,-500.0,0.0003726,2]
[310209055,1704400317329,-500.0,0.0003726,2]
[310209056,1704400317338,-511.59,0.0003726,2]
[310209057,1704400317347,-500.0,0.0003726,2]
[310209058,1704400317357,-413.92294956,0.0003726,2]
[310209059,1704400317366,-500.0,0.0003726,2]
[310209060,1704400317375,-355.27,0.0003726,2]
[310209061,1704400317385,-159.65,0.0003726,2]
[310209062,1704400317395,-576.81740186,0.0003726,2]
[310209063,1704400317406,-500.0,0.0003726,2]
[310209064,1704400317416,-984.97,0.0003726,2]
[310209065,1704400317425,-500.0,0.0003726,2]
[310209066,1704400317434,-500.0,0.0003726,2]
[310209067,1704400317443,-500.0,0.0003726,2]
[310209068,1704400317452,-500.0,0.0003726,2]
[310209069,1704400317462,-2813.94,0.0003726,2]
[310209070,1704400317471,-500.0,0.0003726,2]
[310209071,1704400317480,-500.0,0.0003726,2]
[310209072,1704400317491,-815.95,0.0003726,2]
[310209073,1704400317502,-1043.97,0.0003726,2]
[310209074,1704400317514,-4226.54,0.0003726,2]
[310209075,1704400317523,-579.28,0.0003726,2]
[310209076,1704400317535,-500.93,0.0003726,2]
[310209077,1704400317545,-1545.25,0.0003726,2]
[310209078,1704400317555,-896.7,0.0003726,2]
[310209079,1704400317565,-1118.72,0.0003726,2]
[310209080,1704400317575,-766.02,0.0003726,2]
[310209081,1704400317585,-525.53,0.0003726,2]
[310209082,1704400317595,-1839.95,0.0003726,2]
[310209083,1704400317606,-1961.18,0.0003726,2]
[310209084,1704400317615,-666.57,0.0003726,2]
[310209085,1704400317625,-650.88,0.0003726,2]
[310209086,1704400317635,-1047.53,0.0003726,2]
[310209087,1704400317647,-2743.39,0.0003726,2]
[310209088,1704400317656,-6488.11,0.0003726,2]
[310209089,1704400317665,-1207.75,0.0003726,2]
[310209090,1704400317675,-802.32,0.0003726,2]
[310209091,1704400317685,-500.0,0.0003726,2]
[310209092,1704400317694,-2300.26,0.0003726,2]
[310209093,1704400317705,-564.62,0.0003726,2]
[310209094,1704400317716,-2212.73,0.0003726,2]
[310209095,1704400317726,-500.0,0.0003726,2]
[310209096,1704400317736,-8818.63,0.0003726,2]
[310209097,1704400317745,-554.47,0.0003726,2]
[310209098,1704400317756,-1988.3,0.0003726,2]
[310209099,1704400317766,-500.0,0.0003726,2]
[310209100,1704400317776,-1033.94,0.0003726,2]
[310209101,1704400317786,-8023.99,0.0003726,2]
[310209102,1704400317796,-2729.72,0.0003726,2]
[310209103,1704400317805,-1421.2,0.0003726,2]
[310209104,1704400317815,-2075.81,0.0003726,2]
[310209105,1704400317826,-500.0,0.0003726,2]
[310209106,1704400317835,-500.0,0.0003726,2]
[310209107,1704400317845,-1492.24,0.0003726,2]
[310209108,1704400317855,-2507.15,0.0003726,2]
[310209109,1704400317865,-500.0,0.0003726,2]
[310209110,1704400317874,-500.0,0.0003726,2]
[310209111,1704400317884,-5784.19,0.0003726,2]
[310209112,1704400317894,-1148.25,0.0003726,2]
[310209113,1704400317904,-512.73,0.0003726,2]
[310209114,1704400317913,-500.08,0.0003726,2]
[310209115,1704400317922,-714.23,0.0003726,2]
[310209116,1704400317932,-582.44,0.0003726,2]
[310209117,1704400317942,-500.0,0.0003726,2]
[310209118,1704400317951,-500.0,0.0003726,2]
[310209119,1704400317961,-565.27,0.0003726,2]
[310209120,1704400317970,-799.36,0.0003726,2]
[310209121,1704400317981,-500.0,0.0003726,2]
[310209122,1704400317992,-500.0,0.0003726,2]
[310209123,1704400318001,-1291.64,0.0003726,2]
[310209124,1704400318010,-1533.04,0.0003726,2]
[310209125,1704400318020,-654.95,0.0003726,2]
[310209126,1704400318030,-1046.38,0.0003726,2]
[310209127,1704400318040,-1168.15,0.0003726,2]
[310209128,1704400318050,-1279.36,0.0003726,2]
[310209129,1704400318059,-774.31,0.0003726,2]
[310209130,1704400318068,-1178.66,0.0003726,2]
[310209131,1704400318078,-2705.72,0.0003726,2]
[310209132,1704400318087,-540.01,0.0003726,2]
[310209133,1704400318097,-800.68,0.0003726,2]
[310209134,1704400318106,-1033.15,0.0003726,2]
[310209135,1704400318115,-683.02,0.0003726,2]
[310209136,1704400318126,-500.0,0.0003726,2]
[310209137,1704400318135,-664.5,0.0003726,2]
[310209138,1704400318144,-5429.5,0.0003726,2]
[310209139,1704400318154,-787.99,0.0003726,2]
[310209140,1704400318164,-500.0,0.0003726,2]
[310209141,1704400318175,-1185.9,0.0003726,2]
[310209142,1704400318184,-502.99,0.0003726,2]
[310209143,1704400318194,-803.67,0.0003726,2]
[310209144,1704400318205,-703.08,0.0003726,2]
[310209145,1704400318214,-931.91,0.0003726,2]
[310209146,1704400318224,-3045.47,0.0003726,2]
[310209147,1704400318235,-500.0,0.0003726,2]
[310209148,1704400318243,-924.28,0.0003726,2]
[310209149,1704400318252,-612.45,0.0003726,2]
[310209150,1704400318262,-1719.17,0.0003726,2]
[310209151,1704400318272,-500.0,0.0003726,2]
[310209152,1704400318281,-1664.58,0.0003726,2]
[310209153,1704400318291,-650.67,0.0003726,2]
[310209154,1704400318301,-837.7,0.0003726,2]
[310209155,1704400318310,-651.85,0.0003726,2]
[310209156,1704400318319,-500.0,0.0003726,2]
[310209157,1704400318329,-1763.88,0.0003726,2]
[310209158,1704400318339,-5455.26,0.0003726,2]
[310209159,1704400318348,-595.32,0.0003726,2]
[310209160,1704400318358,-500.0,0.0003726,2]
[310209161,1704400318368,-864.85,0.0003726,2]
[310209162,1704400318377,-500.0,0.0003726,2]
[310209163,1704400318386,-618.44,0.0003726,2]
[310209164,1704400318400,-1928.75,0.0003726,2]
[310209165,1704400318409,-500.0,0.0003726,2]
[310209166,1704400318419,-274.57007725,0.0003726,2]
[310209167,1704400318428,-575.7,0.0003726,2]
[310209168,1704400318438,-2873.21,0.0003726,2]
[310209169,1704400318448,-589.02,0.0003726,2]
[310209170,1704400318458,-500.0,0.0003726,2]
[310209171,1704400318467,-500.0,0.0003726,2]
[310209172,1704400318476,-501.82,0.0003726,2]
[310209173,1704400318486,-500.0,0.0003726,2]
[310209174,1704400318495,-500.0,0.0003726,2]
[310209175,1704400318504,-1565.07,0.0003726,2]
[310209176,1704400318513,-1472.89,0.0003726,2]
[310209177,1704400318523,-6496.65,0.0003726,2]
[310209178,1704400318532,-902.0,0.0003726,2]
[310209179,1704400318542,-500.0,0.0003726,2]
[310209180,1704400318551,-864.86,0.0003726,2]
[310209181,1704400318560,-539.42,0.0003726,2]
[310209182,1704400318570,-659.36,0.0003726,2]
[310209183,1704400318579,-2834.51,0.0003726,2]
[310209184,1704400318589,-500.0,0.0003726,2]
[310209185,1704400318598,-535.67,0.0003726,2]
[310209186,1704400318608,-772.31,0.0003726,2]
[310209187,1704400318617,-730.25,0.0003726,2]
[310209188,1704400318626,-500.0,0.0003726,2]
[310209189,1704400318636,-500.0,0.0003726,2]
[310209190,1704400318645,-1511.83,0.0003726,2]
[310209191,1704400318654,-597.99,0.0003726,2]
[310209192,1704400318663,-1373.46,0.0003726,2]
[310209193,1704400318673,-500.0,0.0003726,2]
[310209194,1704400318682,-500.0,0.0003726,2]
[310209195,1704400318691,-1411.58,0.0003726,2]
[310209196,1704400318701,-844.92,0.0003726,2]
[310209197,1704400318710,-1122.72,0.0003726,2]
[310209198,1704400318719,-500.0,0.0003726,2]
[310209199,1704400318728,-938.79,0.0003726,2]
[310209200,1704400318738,-700.27,0.0003726,2]
[310209201,1704400318747,-2603.65,0.0003726,2]
[310209202,1704400318756,-500.0,0.0003726,2]
[310209203,1704400318765,-472.32879345,0.0003726,2]
[310209204,1704400318774,-690.56,0.0003726,2]
[310209205,1704400318784,-1114.57,0.0003726,2]
[310209206,1704400318794,-194.00867035,0.0003726,2]
[310209207,1704400318804,-1863.03,0.0003726,2]
[310209208,1704400318813,-625.26,0.0003726,2]
[310209209,1704400318822,-1822.1,0.0003726,2]
[310209210,1704400318832,-524.64,0.0003726,2]
[310209211,1704400318841,-715.91,0.0003726,2]
[310209212,1704400318851,-1359.04,0.0003726,2]
[310209213,1704400318860,-756.29,0.0003729,2]
[310209214,1704400318870,-157.40104,0.00037298,2]
[310209215,1704400318880,-43589.63,0.000373,7]
[310209216,1704400318890,-25696.93,0.000373,7]
[310209217,1704400318900,-325.61963289,0.00037347,14]
[310209218,1704400318909,-1087.0,0.00037366,20]
[310209219,1704400318919,-464.0,0.00037366,20]
[310209220,1704400318928,-193.37738756,0.000374,30]
[310209221,1704400318939,-150.0,0.000374,26]
[310209222,1704400318949,-1526.717755,0.000374,24]
[310209223,1704400318959,-151.5350356,0.00037407,14]
[310209224,1704400318969,-500.0,0.00037408,7]
[310209225,1704400318979,-500.0,0.00037408,7]
[310209226,1704400318988,-157.03,0.00037431,2]
[310209227,1704400318998,-151.5350356,0.00037434,14]
[310209228,1704400319007,-152.79793013,0.00037454,14]
[310209229,1704400319017,-2442.75846401,0.00037457,11]
[310209230,1704400319026,-3020.0,0.00037463,7]
[310209231,1704400319036,-325.61963289,0.00037475,14]
[310209232,1704400319045,-177.85,0.00037485,2]
[310209233,1704400319055,-150.0,0.00037491,2]
[310209234,1704400319065,-1162.86847685,0.00037494,15]
[310209235,1704400319074,-411.25991506,0.00037494,15]
[310209236,1704400319083,-1470.02954948,0.00037494,15]
[310209237,1704400319092,-1670.58686656,0.00037494,15]
[310209238,1704400319102,-174.00751121,0.00037496,14]
[310209239,1704400319111,-157.40104,0.00037498,2]
[310209240,1704400319120,-3000.0,0.000375,4]
[310209241,1704400319129,-299.51593684,0.000375,15]
[310209242,1704400319138,-2620.45075044,0.000375,30]
[310209243,1704400319148,-1200.0,0.000375,30]
[310209244,1704400319158,-6488.8674879,0.00037513,2]
[310209245,1704400319167,-227.0,0.00037521,20]
[310209246,1704400319176,-154.23478519,0.00037528,14]
[310209247,1704400319185,-1105.69,0.00037534,2]
[310209248,1704400319195,-654.3,0.00037534,2]
[310209249,1704400319204,-500.0,0.00037534,2]
[310209250,1704400319214,-329.89647926,0.00037534,2]
[310209251,1704400319223,-809.33,0.00037534,2]
[310209252,1704400319233,-500.0,0.00037534,2]
[310209253,1704400319243,-360.97948952,0.00037534,2]
[310209254,1704400319252,-570.2,0.00037534,2]
[310209255,1704400319261,-500.0,0.00037534,2]
[310209256,1704400319271,-500.0,0.00037534,2]
[310209257,1704400319280,-500.0,0.00037534,2]
[310209258,1704400319290,-500.0,0.00037534,2]
[310209259,1704400319299,-826.26,0.00037534,2]
[310209260,1704400319309,-500.0,0.00037534,2]
[310209261,1704400319319,-1785.82,0.00037534,2]
[310209262,1704400319328,-541.66,0.00037534,2]
[310209263,1704400319338,-702.0,0.00037534,2]
[310209264,1704400319347,-713.92,0.00037534,2]
[310209265,1704400319356,-508.08,0.00037534,2]
[310209266,1704400319365,-509.72929714,0.00037534,2]
[310209267,1704400319375,-500.0,0.00037534,2]
[310209268,1704400319384,-605.7,0.00037534,2]
[310209269,1704400319461,-500.0,0.00037534,2]
[310209270,1704400319471,-617.34,0.00037534,2]
[310209271,1704400319481,-1053.81,0.00037534,2]
[310209272,1704400319490,-500.0,0.00037534,2]
[310209273,1704400319500,-500.0,0.00037534,2]
[310209274,1704400319509,-500.0,0.00037534,2]
[310209275,1704400319518,-637.91,0.00037534,2]
[310209276,1704400319527,-642.96,0.00037534,2]
[310209277,1704400319537,-500.0,0.00037534,2]
[310209278,1704400319547,-580.0,0.00037534,2]
[310209279,1704400319556,-500.0,0.00037534,2]
[310209280,1704400319566,-643.25802664,0.00037534,2]
[310209281,1704400319576,-500.0,0.00037534,2]
[310209282,1704400319586,-500.0,0.00037534,2]
[310209283,1704400319595,-500.0,0.00037534,2]
[310209284,1704400319605,-583.92,0.00037534,2]
[310209285,1704400319614,-500.0,0.00037534,2]
[310209286,1704400319624,-500.0,0.00037534,2]
[310209287,1704400319633,-644.12,0.00037534,2]
[310209288,1704400319643,-1262.62,0.00037534,2]
[310209289,1704400319654,-500.0,0.00037534,2]
[310209290,1704400319665,-501.37,0.00037534,2]
[310209291,1704400319674,-500.0,0.00037534,2]
[310209292,1704400319684,-500.0,0.00037534,2]
[310209293,1704400319693,-511.59,0.00037534,2]
[310209294,1704400319703,-500.0,0.00037534,2]
[310209295,1704400319713,-500.0,0.00037534,2]
[310209296,1704400319722,-159.65,0.00037534,2]
[310209297,1704400319731,-500.0,0.00037534,2]
[310209298,1704400319741,-984.97,0.00037534,2]